[Event "Titled Tuesday Blitz April 18 Late 2023"]
[White "Georg, Heinz"]
[Black "Joubert, Dantelle"]
[WhiteFideId "4607295"]
[BlackFideId "14310813"]
[WhiteElo "2256"]
[BlackElo "1507"]
[Result "1-0"]
[Round "07"]
[TimeControl "180+2"]
[Date "2023.04.18"]
[WhiteClock "0:02:08"]
[BlackClock "0:02:08"]

1. c4 {[%clk 0:03:00]}  Nf6 {[%clk 0:02:58]} 2. Nc3 {[%clk 0:03:00]}  e6 {[%clk 0:02:59]} 3. d4 {[%clk 0:02:59]}  Bb4 {[%clk 0:02:56]} 4. a3 {[%clk 0:02:53]}  Bxc3+ {[%clk 0:02:54]} 5. bxc3 {[%clk 0:02:54]}  O-O {[%clk 0:02:51]} 6. f3 {[%clk 0:02:51]}  b6 {[%clk 0:02:49]} 7. e4 {[%clk 0:02:51]}  Ba6 {[%clk 0:02:48]} 8. e5 {[%clk 0:02:38]}  Ne8 {[%clk 0:02:45]} 9. f4 {[%clk 0:02:38]}  Nc6 {[%clk 0:02:38]} 10. Nf3 {[%clk 0:02:37]}  Na5 {[%clk 0:02:34]} 11. Bd3 {[%clk 0:02:28]}  d6 {[%clk 0:02:27]} 12. Bxh7+ {[%clk 0:02:26]}  Kxh7 {[%clk 0:02:11]} 13. Ng5+ {[%clk 0:02:25]}  Kg6 {[%clk 0:02:09]} 14. Qg4 {[%clk 0:02:23]}  f5 {[%clk 0:02:08]} 15. Qh4 {[%clk 0:02:08]} 1-0


[Site "https://www.chess.com"]

[Event "Titled Tuesday Blitz April 18 Late 2023"]
[White "De Souza, Cristiano Gomes"]
[Black "Sanchez, Robert"]
[WhiteFideId "2151758"]
[BlackFideId "2034360"]
[WhiteElo "2068"]
[BlackElo "1967"]
[Result "1-0"]
[Round "07"]
[TimeControl "180+2"]
[Date "2023.04.18"]
[WhiteClock "0:01:01"]
[BlackClock "0:00:54"]

1. d4 {[%clk 0:03:00]}  Nf6 {[%clk 0:02:59]} 2. c4 {[%clk 0:03:00]}  e6 {[%clk 0:03:00]} 3. Nf3 {[%clk 0:03:00]}  Bb4+ {[%clk 0:03:00]} 4. Bd2 {[%clk 0:03:00]}  Qe7 {[%clk 0:03:00]} 5. Nc3 {[%clk 0:03:00]}  Nc6 {[%clk 0:03:00]} 6. a3 {[%clk 0:02:59]}  Bxc3 {[%clk 0:03:00]} 7. Bxc3 {[%clk 0:03:00]}  Ne4 {[%clk 0:03:00]} 8. Rc1 {[%clk 0:03:00]}  O-O {[%clk 0:03:00]} 9. e3 {[%clk 0:03:00]}  Nxc3 {[%clk 0:03:01]} 10. Rxc3 {[%clk 0:03:00]}  d6 {[%clk 0:03:01]} 11. b4 {[%clk 0:03:00]}  e5 {[%clk 0:03:02]} 12. d5 {[%clk 0:02:59]}  Nb8 {[%clk 0:03:02]} 13. Qc2 {[%clk 0:02:56]}  f5 {[%clk 0:03:02]} 14. c5 {[%clk 0:02:55]}  Na6 {[%clk 0:02:52]} 15. Be2 {[%clk 0:02:53]}  b6 {[%clk 0:02:28]} 16. cxd6 {[%clk 0:02:49]}  cxd6 {[%clk 0:02:23]} 17. O-O {[%clk 0:02:46]}  Bb7 {[%clk 0:02:19]} 18. Rc1 {[%clk 0:02:43]}  Rac8 {[%clk 0:02:16]} 19. Qa4 {[%clk 0:02:36]}  Rxc3 {[%clk 0:02:15]} 20. Rxc3 {[%clk 0:02:35]}  Nc7 {[%clk 0:02:07]} 21. Qxa7 {[%clk 0:02:33]}  Nxd5 {[%clk 0:02:07]} 22. Bc4 {[%clk 0:02:26]}  Qf7 {[%clk 0:02:00]} 23. Rc1 {[%clk 0:02:14]}  Ra8 {[%clk 0:01:56]} 24. Bxd5 {[%clk 0:02:08]}  Rxa7 {[%clk 0:01:41]} 25. Bxf7+ {[%clk 0:02:06]}  Kxf7 {[%clk 0:01:42]} 26. Rc7+ {[%clk 0:02:05]}  Kf6 {[%clk 0:01:39]} 27. h4 {[%clk 0:02:04]}  h6 {[%clk 0:01:37]} 28. Nd2 {[%clk 0:02:03]}  d5 {[%clk 0:01:35]} 29. f3 {[%clk 0:01:58]}  g5 {[%clk 0:01:34]} 30. hxg5+ {[%clk 0:01:57]}  hxg5 {[%clk 0:01:35]} 31. Kf2 {[%clk 0:01:55]}  Ke6 {[%clk 0:01:34]} 32. a4 {[%clk 0:01:50]}  Kd6 {[%clk 0:01:31]} 33. Rh7 {[%clk 0:01:49]}  Kc6 {[%clk 0:01:31]} 34. Rh6+ {[%clk 0:01:41]}  Kc7 {[%clk 0:01:28]} 35. Re6 {[%clk 0:01:27]}  Rxa4 {[%clk 0:01:28]} 36. Rxe5 {[%clk 0:01:27]}  Rxb4 {[%clk 0:01:28]} 37. Rxf5 {[%clk 0:01:26]}  Rb2 {[%clk 0:01:28]} 38. Ke1 {[%clk 0:01:26]}  Ra2 {[%clk 0:01:26]} 39. Rxg5 {[%clk 0:01:25]}  b5 {[%clk 0:01:26]} 40. Nb3 {[%clk 0:01:25]}  b4 {[%clk 0:01:22]} 41. Kd1 {[%clk 0:01:22]}  Rb2 {[%clk 0:01:18]} 42. Nd4 {[%clk 0:01:22]}  Ba6 {[%clk 0:01:08]} 43. Kc1 {[%clk 0:01:20]}  Rf2 {[%clk 0:01:07]} 44. Rxd5 {[%clk 0:01:18]}  Rxg2 {[%clk 0:01:07]} 45. f4 {[%clk 0:01:11]}  b3 {[%clk 0:00:59]} 46. Nxb3 {[%clk 0:01:08]}  Kc6 {[%clk 0:00:55]} 47. Re5 {[%clk 0:01:04]}  Bd3 {[%clk 0:00:54]} 48. Nd4+ {[%clk 0:01:03]}  Kd6 {[%clk 0:00:54]} 49. Ra5 {[%clk 0:01:01]} 1-0


[Site "https://www.chess.com"]

[Event "Titled Tuesday Blitz April 18 Late 2023"]
[White "Vachier-Lagrave, Maxime"]
[Black "Caruana, Fabiano"]
[WhiteFideId "623539"]
[BlackFideId "2020009"]
[WhiteElo "2740"]
[BlackElo "2837"]
[Result "1-0"]
[Round "08"]
[TimeControl "180+2"]
[Date "2023.04.18"]
[WhiteClock "0:00:30"]
[BlackClock "0:00:01"]

1. e4 {[%clk 0:03:00]}  e5 {[%clk 0:02:58]} 2. Nf3 {[%clk 0:03:01]}  Nc6 {[%clk 0:02:59]} 3. Bb5 {[%clk 0:03:01]}  a6 {[%clk 0:02:59]} 4. Ba4 {[%clk 0:03:02]}  Nf6 {[%clk 0:02:59]} 5. O-O {[%clk 0:03:03]}  b5 {[%clk 0:02:59]} 6. Bb3 {[%clk 0:03:03]}  Bc5 {[%clk 0:03:00]} 7. a4 {[%clk 0:03:01]}  Rb8 {[%clk 0:03:00]} 8. Nxe5 {[%clk 0:02:57]}  Nxe5 {[%clk 0:02:59]} 9. d4 {[%clk 0:02:58]}  Bxd4 {[%clk 0:03:00]} 10. Qxd4 {[%clk 0:02:58]}  d6 {[%clk 0:03:00]} 11. f4 {[%clk 0:02:57]}  Nc6 {[%clk 0:03:00]} 12. Qc3 {[%clk 0:02:57]}  Ne7 {[%clk 0:03:00]} 13. Qe1 {[%clk 0:02:55]}  O-O {[%clk 0:02:57]} 14. axb5 {[%clk 0:02:45]}  axb5 {[%clk 0:02:56]} 15. e5 {[%clk 0:02:45]}  Nfd5 {[%clk 0:02:47]} 16. Nc3 {[%clk 0:02:40]}  Nxc3 {[%clk 0:02:44]} 17. Qxc3 {[%clk 0:02:41]}  Nf5 {[%clk 0:02:38]} 18. g4 {[%clk 0:02:20]}  Nh4 {[%clk 0:02:36]} 19. f5 {[%clk 0:02:13]}  dxe5 {[%clk 0:02:34]} 20. Qg3 {[%clk 0:02:13]}  e4 {[%clk 0:02:23]} 21. Bf4 {[%clk 0:02:11]}  Nf3+ {[%clk 0:02:16]} 22. Kg2 {[%clk 0:02:07]}  Qd4 {[%clk 0:01:24]} 23. Rad1 {[%clk 0:02:04]}  Qxb2 {[%clk 0:01:18]} 24. Bxc7 {[%clk 0:02:04]}  Rb7 {[%clk 0:01:18]} 25. Bd6 {[%clk 0:01:49]}  Re8 {[%clk 0:01:18]} 26. Bb4 {[%clk 0:01:37]}  h5 {[%clk 0:01:05]} 27. h3 {[%clk 0:01:24]}  Bd7 {[%clk 0:00:53]} 28. Qd6 {[%clk 0:01:20]}  Qe5 {[%clk 0:00:33]} 29. Qxe5 {[%clk 0:01:20]}  Rxe5 {[%clk 0:00:26]} 30. Kg3 {[%clk 0:01:20]}  Re8 {[%clk 0:00:23]} 31. Kf4 {[%clk 0:01:17]}  Bc6 {[%clk 0:00:22]} 32. Rd6 {[%clk 0:01:14]}  Rc7 {[%clk 0:00:22]} 33. g5 {[%clk 0:01:13]}  Kh8 {[%clk 0:00:10]} 34. Rfd1 {[%clk 0:01:08]}  Bb7 {[%clk 0:00:05]} 35. Rd8 {[%clk 0:01:06]}  Rc8 {[%clk 0:00:05]} 36. Rxe8+ {[%clk 0:01:05]}  Rxe8 {[%clk 0:00:06]} 37. Bxf7 {[%clk 0:01:06]}  Rc8 {[%clk 0:00:06]} 38. Bxh5 {[%clk 0:01:00]}  Nh4 {[%clk 0:00:05]} 39. Rd7 {[%clk 0:00:57]}  Bc6 {[%clk 0:00:04]} 40. Ra7 {[%clk 0:00:51]}  Ng2+ {[%clk 0:00:03]} 41. Kg3 {[%clk 0:00:48]}  Ne3 {[%clk 0:00:03]} 42. Bg6 {[%clk 0:00:46]}  Bd5 {[%clk 0:00:03]} 43. c3 {[%clk 0:00:42]}  Nc4 {[%clk 0:00:02]} 44. Re7 {[%clk 0:00:38]}  e3 {[%clk 0:00:02]} 45. f6 {[%clk 0:00:33]}  gxf6 {[%clk 0:00:02]} 46. gxf6 {[%clk 0:00:34]}  Bg8 {[%clk 0:00:02]} 47. f7 {[%clk 0:00:30]}  Bxf7 {[%clk 0:00:02]} 48. Bxf7 {[%clk 0:00:30]}  Rf8 {[%clk 0:00:01]} 49. Bxc4 {[%clk 0:00:30]} 1-0


[Site "https://www.chess.com"]

[Event "Titled Tuesday Blitz April 18 Late 2023"]
[White "Carlsen, Magnus"]
[Black "Yoo, Christopher Woojin"]
[WhiteFideId "1503014"]
[BlackFideId "30909694"]
[WhiteElo "2852"]
[BlackElo "2519"]
[Result "1/2-1/2"]
[Round "08"]
[TimeControl "180+2"]
[Date "2023.04.18"]
[WhiteClock "0:00:05"]
[BlackClock "0:00:07"]

1. e4 {[%clk 0:03:00]}  c5 {[%clk 0:02:59]} 2. a3 {[%clk 0:02:58]}  d5 {[%clk 0:02:49]} 3. exd5 {[%clk 0:02:57]}  Qxd5 {[%clk 0:02:47]} 4. Nc3 {[%clk 0:02:56]}  Qd8 {[%clk 0:02:46]} 5. Qh5 {[%clk 0:02:49]}  e6 {[%clk 0:02:40]} 6. Bc4 {[%clk 0:02:46]}  Nf6 {[%clk 0:02:40]} 7. Qh4 {[%clk 0:02:47]}  Be7 {[%clk 0:02:38]} 8. d3 {[%clk 0:02:47]}  O-O {[%clk 0:02:38]} 9. Nf3 {[%clk 0:02:46]}  b6 {[%clk 0:02:30]} 10. Ne4 {[%clk 0:02:42]}  Bb7 {[%clk 0:02:25]} 11. Bg5 {[%clk 0:02:30]}  Nbd7 {[%clk 0:02:20]} 12. Bb5 {[%clk 0:01:52]}  h6 {[%clk 0:01:46]} 13. Bxd7 {[%clk 0:01:52]}  Bxe4 {[%clk 0:01:46]} 14. dxe4 {[%clk 0:01:50]}  Qxd7 {[%clk 0:01:32]} 15. e5 {[%clk 0:01:49]}  hxg5 {[%clk 0:01:15]} 16. Nxg5 {[%clk 0:01:50]}  Rfd8 {[%clk 0:01:03]} 17. O-O {[%clk 0:01:45]}  Qd4 {[%clk 0:00:56]} 18. Qxd4 {[%clk 0:01:45]}  cxd4 {[%clk 0:00:52]} 19. exf6 {[%clk 0:01:45]}  gxf6 {[%clk 0:00:47]} 20. Nf3 {[%clk 0:01:45]}  Rac8 {[%clk 0:00:47]} 21. Rac1 {[%clk 0:01:45]}  f5 {[%clk 0:00:33]} 22. Rfd1 {[%clk 0:01:45]}  Bf6 {[%clk 0:00:33]} 23. Ne1 {[%clk 0:01:46]}  e5 {[%clk 0:00:33]} 24. Rd2 {[%clk 0:01:27]}  Bg5 {[%clk 0:00:32]} 25. Rcd1 {[%clk 0:01:24]}  Bxd2 {[%clk 0:00:32]} 26. Rxd2 {[%clk 0:01:25]}  e4 {[%clk 0:00:33]} 27. g3 {[%clk 0:01:24]}  f4 {[%clk 0:00:23]} 28. f3 {[%clk 0:01:21]}  fxg3 {[%clk 0:00:15]} 29. fxe4 {[%clk 0:01:20]}  gxh2+ {[%clk 0:00:16]} 30. Rxh2 {[%clk 0:01:18]}  Re8 {[%clk 0:00:14]} 31. Re2 {[%clk 0:01:14]}  Rc4 {[%clk 0:00:08]} 32. Kf2 {[%clk 0:01:13]}  Re6 {[%clk 0:00:05]} 33. e5 {[%clk 0:01:11]}  Rh6 {[%clk 0:00:03]} 34. Nf3 {[%clk 0:01:07]}  Rcc6 {[%clk 0:00:01]} 35. Kg3 {[%clk 0:01:02]}  Rcg6+ {[%clk 0:00:02]} 36. Kf4 {[%clk 0:01:03]}  Rh3 {[%clk 0:00:02]} 37. Rd2 {[%clk 0:00:57]}  Rhg3 {[%clk 0:00:02]} 38. Nxd4 {[%clk 0:00:56]}  R6g4+ {[%clk 0:00:02]} 39. Kf5 {[%clk 0:00:56]}  Kg7 {[%clk 0:00:03]} 40. e6 {[%clk 0:00:53]}  Rg5+ {[%clk 0:00:03]} 41. Ke4 {[%clk 0:00:52]}  R3g4+ {[%clk 0:00:04]} 42. Kd3 {[%clk 0:00:51]}  Rg3+ {[%clk 0:00:03]} 43. Ke4 {[%clk 0:00:48]}  R3g4+ {[%clk 0:00:03]} 44. Kd3 {[%clk 0:00:45]}  Rd5 {[%clk 0:00:03]} 45. Kc3 {[%clk 0:00:32]}  Rc5+ {[%clk 0:00:02]} 46. Kb3 {[%clk 0:00:32]}  Re5 {[%clk 0:00:02]} 47. exf7 {[%clk 0:00:31]}  Kxf7 {[%clk 0:00:03]} 48. Nc6 {[%clk 0:00:29]}  Re3+ {[%clk 0:00:04]} 49. Ka2 {[%clk 0:00:29]}  a5 {[%clk 0:00:04]} 50. Rd7+ {[%clk 0:00:28]}  Ke8 {[%clk 0:00:04]} 51. Rd8+ {[%clk 0:00:25]}  Kf7 {[%clk 0:00:04]} 52. Rb8 {[%clk 0:00:24]}  Rc4 {[%clk 0:00:03]} 53. Rxb6 {[%clk 0:00:23]}  Rxc2 {[%clk 0:00:04]} 54. Nxa5 {[%clk 0:00:24]}  Ree2 {[%clk 0:00:04]} 55. a4 {[%clk 0:00:22]}  Ke7 {[%clk 0:00:04]} 56. Ka3 {[%clk 0:00:22]}  Kd7 {[%clk 0:00:04]} 57. b3 {[%clk 0:00:22]}  Kc7 {[%clk 0:00:03]} 58. Rb7+ {[%clk 0:00:23]}  Kd6 {[%clk 0:00:04]} 59. Rb5 {[%clk 0:00:24]}  Re4 {[%clk 0:00:03]} 60. Rb6+ {[%clk 0:00:20]}  Kd5 {[%clk 0:00:04]} 61. Nb7 {[%clk 0:00:19]}  Ree2 {[%clk 0:00:03]} 62. Rb5+ {[%clk 0:00:19]}  Kc6 {[%clk 0:00:03]} 63. Na5+ {[%clk 0:00:19]}  Kc7 {[%clk 0:00:04]} 64. Nc4 {[%clk 0:00:20]}  Re4 {[%clk 0:00:03]} 65. Rc5+ {[%clk 0:00:20]}  Kb8 {[%clk 0:00:02]} 66. Kb4 {[%clk 0:00:20]}  Re7 {[%clk 0:00:03]} 67. a5 {[%clk 0:00:18]}  Rb7+ {[%clk 0:00:03]} 68. Nb6 {[%clk 0:00:15]}  Rxc5 {[%clk 0:00:03]} 69. Kxc5 {[%clk 0:00:16]}  Rh7 {[%clk 0:00:03]} 70. b4 {[%clk 0:00:14]}  Ka7 {[%clk 0:00:03]} 71. b5 {[%clk 0:00:12]}  Rh5+ {[%clk 0:00:04]} 72. Kc6 {[%clk 0:00:10]}  Rh6+ {[%clk 0:00:04]} 73. Kc7 {[%clk 0:00:10]}  Rh5 {[%clk 0:00:03]} 74. Nc8+ {[%clk 0:00:09]}  Ka8 {[%clk 0:00:04]} 75. Nd6 {[%clk 0:00:09]}  Rh7+ {[%clk 0:00:03]} 76. Kc6 {[%clk 0:00:09]}  Rh1 {[%clk 0:00:03]} 77. b6 {[%clk 0:00:09]}  Rc1+ {[%clk 0:00:04]} 78. Kb5 {[%clk 0:00:10]}  Kb8 {[%clk 0:00:04]} 79. a6 {[%clk 0:00:10]}  Rb1+ {[%clk 0:00:04]} 80. Kc5 {[%clk 0:00:09]}  Ra1 {[%clk 0:00:05]} 81. Kb5 {[%clk 0:00:07]}  Rb1+ {[%clk 0:00:05]} 82. Kc6 {[%clk 0:00:04]}  Ra1 {[%clk 0:00:05]} 83. a7+ {[%clk 0:00:04]}  Rxa7 {[%clk 0:00:06]} 84. bxa7+ {[%clk 0:00:05]}  Kxa7 {[%clk 0:00:07]} 1/2-1/2


[Site "https://www.chess.com"]

[Event "Titled Tuesday Blitz April 18 Late 2023"]
[White "Nakamura, Hikaru"]
[Black "Xiong, Jeffery"]
[WhiteFideId "2016192"]
[BlackFideId "2047640"]
[WhiteElo "2885"]
[BlackElo "2726"]
[Result "1-0"]
[Round "08"]
[TimeControl "180+2"]
[Date "2023.04.18"]
[WhiteClock "0:00:59"]
[BlackClock "0:02:18"]

1. Nf3 {[%clk 0:03:00]}  d5 {[%clk 0:03:00]} 2. e3 {[%clk 0:03:00]}  Nf6 {[%clk 0:03:00]} 3. c4 {[%clk 0:03:01]}  e6 {[%clk 0:03:01]} 4. b3 {[%clk 0:03:02]}  dxc4 {[%clk 0:03:01]} 5. bxc4 {[%clk 0:02:58]}  c5 {[%clk 0:03:01]} 6. g3 {[%clk 0:02:58]}  b6 {[%clk 0:03:00]} 7. d3 {[%clk 0:02:57]}  Bb7 {[%clk 0:03:00]} 8. Bg2 {[%clk 0:02:57]}  Be7 {[%clk 0:03:00]} 9. O-O {[%clk 0:02:58]}  O-O {[%clk 0:03:00]} 10. Nc3 {[%clk 0:02:56]}  Nc6 {[%clk 0:03:01]} 11. Qe2 {[%clk 0:02:56]}  Qc7 {[%clk 0:02:57]} 12. Rd1 {[%clk 0:02:55]}  Rad8 {[%clk 0:02:57]} 13. Bb2 {[%clk 0:02:54]}  Qb8 {[%clk 0:02:57]} 14. Ne1 {[%clk 0:02:53]}  Qa8 {[%clk 0:02:58]} 15. f4 {[%clk 0:02:53]}  Ne8 {[%clk 0:02:53]} 16. g4 {[%clk 0:02:52]}  Nd6 {[%clk 0:02:52]} 17. Rd2 {[%clk 0:02:47]}  a6 {[%clk 0:02:50]} 18. a4 {[%clk 0:02:30]}  Nb4 {[%clk 0:02:50]} 19. Rad1 {[%clk 0:02:26]}  Rd7 {[%clk 0:02:48]} 20. Bxb7 {[%clk 0:02:24]}  Qxb7 {[%clk 0:02:49]} 21. g5 {[%clk 0:02:22]}  b5 {[%clk 0:02:46]} 22. Nf3 {[%clk 0:02:06]}  Nc6 {[%clk 0:02:35]} 23. axb5 {[%clk 0:01:52]}  axb5 {[%clk 0:02:36]} 24. cxb5 {[%clk 0:01:52]}  Nxb5 {[%clk 0:02:37]} 25. Ne4 {[%clk 0:01:53]}  Rfd8 {[%clk 0:02:34]} 26. Nf6+ {[%clk 0:01:40]}  gxf6 {[%clk 0:02:24]} 27. gxf6 {[%clk 0:01:39]}  Bf8 {[%clk 0:02:25]} 28. Ng5 {[%clk 0:01:39]}  h6 {[%clk 0:02:19]} 29. Qg4 {[%clk 0:01:14]}  hxg5 {[%clk 0:02:19]} 30. Qxg5+ {[%clk 0:01:04]}  Kh7 {[%clk 0:02:18]} 31. Qh5+ {[%clk 0:00:58]}  Bh6 {[%clk 0:02:18]} 32. Rg2 {[%clk 0:00:59]} 1-0


[Site "https://www.chess.com"]

[Event "Titled Tuesday Blitz April 18 Late 2023"]
[White "Terry, Renato"]
[Black "Naroditsky, Daniel"]
[WhiteFideId "3803457"]
[BlackFideId "2026961"]
[WhiteElo "2575"]
[BlackElo "2633"]
[Result "1-0"]
[Round "08"]
[TimeControl "180+2"]
[Date "2023.04.18"]
[WhiteClock "0:01:24"]
[BlackClock "0:00:10"]

1. d4 {[%clk 0:03:00]}  d6 {[%clk 0:03:00]} 2. Nf3 {[%clk 0:03:00]}  Bg4 {[%clk 0:03:00]} 3. e4 {[%clk 0:03:00]}  Nf6 {[%clk 0:02:59]} 4. Nc3 {[%clk 0:02:58]}  e6 {[%clk 0:02:59]} 5. h3 {[%clk 0:02:58]}  Bh5 {[%clk 0:02:59]} 6. Bd3 {[%clk 0:02:54]}  Be7 {[%clk 0:02:47]} 7. g4 {[%clk 0:02:47]}  Bg6 {[%clk 0:02:46]} 8. Qe2 {[%clk 0:02:47]}  c6 {[%clk 0:02:37]} 9. h4 {[%clk 0:02:37]}  h5 {[%clk 0:02:35]} 10. g5 {[%clk 0:02:37]}  Nfd7 {[%clk 0:02:34]} 11. Bf4 {[%clk 0:02:35]}  Qa5 {[%clk 0:02:29]} 12. e5 {[%clk 0:02:24]}  Bxd3 {[%clk 0:02:13]} 13. Qxd3 {[%clk 0:02:25]}  dxe5 {[%clk 0:02:10]} 14. Nxe5 {[%clk 0:02:25]}  Nxe5 {[%clk 0:01:54]} 15. Bxe5 {[%clk 0:02:26]}  Nd7 {[%clk 0:01:49]} 16. Bxg7 {[%clk 0:02:26]}  Rg8 {[%clk 0:01:49]} 17. Qh7 {[%clk 0:02:13]}  O-O-O {[%clk 0:01:47]} 18. O-O-O {[%clk 0:02:12]}  Bb4 {[%clk 0:01:46]} 19. Rh3 {[%clk 0:02:13]}  Bxc3 {[%clk 0:01:02]} 20. Rxc3 {[%clk 0:02:14]}  Qxa2 {[%clk 0:01:01]} 21. Ra3 {[%clk 0:02:14]}  Qd5 {[%clk 0:00:59]} 22. Rxa7 {[%clk 0:02:10]}  Kb8 {[%clk 0:00:48]} 23. Ra3 {[%clk 0:02:09]}  e5 {[%clk 0:00:43]} 24. Qh6 {[%clk 0:01:42]}  Rge8 {[%clk 0:00:33]} 25. Qxh5 {[%clk 0:01:35]}  exd4 {[%clk 0:00:27]} 26. Bxd4 {[%clk 0:01:30]}  Qf5 {[%clk 0:00:16]} 27. Qf3 {[%clk 0:01:26]}  Qe6 {[%clk 0:00:13]} 28. Qg3+ {[%clk 0:01:24]}  Ne5 {[%clk 0:00:10]} 29. Bxe5+ {[%clk 0:01:24]} 1-0


[Site "https://www.chess.com"]

[Event "Titled Tuesday Blitz April 18 Late 2023"]
[White "Firouzja, Alireza"]
[Black "Pichot, Alan"]
[WhiteFideId "12573981"]
[BlackFideId "110973"]
[WhiteElo "2904"]
[BlackElo "2573"]
[Result "1-0"]
[Round "08"]
[TimeControl "180+2"]
[Date "2023.04.18"]
[WhiteClock "0:01:54"]
[BlackClock "0:01:22"]

1. d4 {[%clk 0:03:00]}  Nf6 {[%clk 0:02:59]} 2. c4 {[%clk 0:03:01]}  e6 {[%clk 0:02:59]} 3. g3 {[%clk 0:02:58]}  d5 {[%clk 0:02:59]} 4. Bg2 {[%clk 0:02:59]}  Be7 {[%clk 0:03:00]} 5. Nf3 {[%clk 0:02:59]}  O-O {[%clk 0:03:00]} 6. O-O {[%clk 0:03:00]}  dxc4 {[%clk 0:03:01]} 7. Qc2 {[%clk 0:03:00]}  a6 {[%clk 0:03:01]} 8. a4 {[%clk 0:03:00]}  Bd7 {[%clk 0:03:02]} 9. Qxc4 {[%clk 0:03:01]}  Bc6 {[%clk 0:03:03]} 10. Bf4 {[%clk 0:03:02]}  a5 {[%clk 0:03:02]} 11. Re1 {[%clk 0:02:59]}  Na6 {[%clk 0:03:00]} 12. Nc3 {[%clk 0:02:59]}  Nb4 {[%clk 0:03:00]} 13. Qb3 {[%clk 0:02:55]}  Bd6 {[%clk 0:02:59]} 14. Bg5 {[%clk 0:02:53]}  h6 {[%clk 0:02:59]} 15. Bxf6 {[%clk 0:02:53]}  Qxf6 {[%clk 0:03:00]} 16. e4 {[%clk 0:02:53]}  Qg6 {[%clk 0:02:56]} 17. Rad1 {[%clk 0:02:47]}  Rfd8 {[%clk 0:02:55]} 18. Nh4 {[%clk 0:02:40]}  Qh5 {[%clk 0:02:48]} 19. Bf3 {[%clk 0:02:27]}  Qg5 {[%clk 0:02:47]} 20. e5 {[%clk 0:02:27]}  Be7 {[%clk 0:02:36]} 21. Ne4 {[%clk 0:02:06]}  Bxe4 {[%clk 0:02:32]} 22. Bxe4 {[%clk 0:02:06]}  c5 {[%clk 0:01:55]} 23. f4 {[%clk 0:01:56]}  Qg4 {[%clk 0:01:55]} 24. Bf3 {[%clk 0:01:56]}  Qh3 {[%clk 0:01:55]} 25. Bg2 {[%clk 0:01:56]}  Qg4 {[%clk 0:01:25]} 26. h3 {[%clk 0:01:54]}  c4 {[%clk 0:01:22]} 27. Qc3 {[%clk 0:01:54]} 1-0


[Site "https://www.chess.com"]

[Event "Titled Tuesday Blitz April 18 Late 2023"]
[White "Moussard, Jules"]
[Black "Gaehwiler, Gabriel"]
[WhiteFideId "642908"]
[BlackFideId "1314530"]
[WhiteElo "2610"]
[BlackElo "2437"]
[Result "1-0"]
[Round "08"]
[TimeControl "180+2"]
[Date "2023.04.18"]
[WhiteClock "0:00:39"]
[BlackClock "0:00:03"]

1. e4 {[%clk 0:03:00]}  c5 {[%clk 0:02:59]} 2. Nf3 {[%clk 0:03:00]}  d6 {[%clk 0:03:00]} 3. d4 {[%clk 0:03:00]}  cxd4 {[%clk 0:03:00]} 4. Nxd4 {[%clk 0:03:01]}  Nf6 {[%clk 0:03:00]} 5. Nc3 {[%clk 0:03:02]}  a6 {[%clk 0:03:01]} 6. g3 {[%clk 0:02:56]}  e5 {[%clk 0:02:54]} 7. Nde2 {[%clk 0:02:56]}  Be6 {[%clk 0:02:49]} 8. Bg2 {[%clk 0:02:53]}  Be7 {[%clk 0:02:45]} 9. O-O {[%clk 0:02:53]}  b5 {[%clk 0:02:42]} 10. a4 {[%clk 0:02:52]}  b4 {[%clk 0:02:41]} 11. Nd5 {[%clk 0:02:53]}  a5 {[%clk 0:02:11]} 12. c3 {[%clk 0:02:30]}  bxc3 {[%clk 0:01:38]} 13. Nexc3 {[%clk 0:02:31]}  O-O {[%clk 0:01:37]} 14. Be3 {[%clk 0:02:29]}  Nbd7 {[%clk 0:01:31]} 15. Nb5 {[%clk 0:02:10]}  Ng4 {[%clk 0:01:21]} 16. Bd2 {[%clk 0:02:04]}  Nc5 {[%clk 0:01:17]} 17. Ndc7 {[%clk 0:02:02]}  Nf6 {[%clk 0:01:05]} 18. Nxa8 {[%clk 0:01:55]}  Qxa8 {[%clk 0:01:06]} 19. Bg5 {[%clk 0:01:55]}  Rd8 {[%clk 0:01:02]} 20. Re1 {[%clk 0:01:52]}  Bb3 {[%clk 0:00:56]} 21. Qe2 {[%clk 0:01:50]}  Bxa4 {[%clk 0:00:54]} 22. Nc7 {[%clk 0:01:47]}  Qb7 {[%clk 0:00:47]} 23. Bxf6 {[%clk 0:01:47]}  Qxc7 {[%clk 0:00:39]} 24. Bxe7 {[%clk 0:01:47]}  Qxe7 {[%clk 0:00:40]} 25. Qe3 {[%clk 0:01:48]}  Rb8 {[%clk 0:00:38]} 26. Qc3 {[%clk 0:01:42]}  Qa7 {[%clk 0:00:28]} 27. h4 {[%clk 0:01:21]}  Rb3 {[%clk 0:00:27]} 28. Qd2 {[%clk 0:01:19]}  Rd3 {[%clk 0:00:19]} 29. Qg5 {[%clk 0:01:16]}  f6 {[%clk 0:00:15]} 30. Qg4 {[%clk 0:01:15]}  Rd2 {[%clk 0:00:08]} 31. Re2 {[%clk 0:01:01]}  Bd7 {[%clk 0:00:08]} 32. Qf3 {[%clk 0:01:01]}  Rd3 {[%clk 0:00:09]} 33. Re3 {[%clk 0:01:01]}  Rd2 {[%clk 0:00:09]} 34. Rd1 {[%clk 0:00:59]}  Rxb2 {[%clk 0:00:07]} 35. Rxd6 {[%clk 0:00:54]}  a4 {[%clk 0:00:07]} 36. Bf1 {[%clk 0:00:46]}  Be6 {[%clk 0:00:06]} 37. Rc3 {[%clk 0:00:43]}  Qe7 {[%clk 0:00:04]} 38. Rc6 {[%clk 0:00:40]}  Nd7 {[%clk 0:00:03]} 39. Rxe6 {[%clk 0:00:39]} 1-0


[Site "https://www.chess.com"]

[Event "Titled Tuesday Blitz April 18 Late 2023"]
[White "Deac, Bogdan-Daniel"]
[Black "Mendez Fortes, Eduardo Jesus"]
[WhiteFideId "1226380"]
[BlackFideId "3502376"]
[WhiteElo "2649"]
[BlackElo "2307"]
[Result "1-0"]
[Round "08"]
[TimeControl "180+2"]
[Date "2023.04.18"]
[WhiteClock "0:02:39"]
[BlackClock "0:01:33"]

1. b3 {[%clk 0:03:00]}  d5 {[%clk 0:02:57]} 2. Bb2 {[%clk 0:02:58]}  Nf6 {[%clk 0:02:58]} 3. e3 {[%clk 0:02:57]}  e6 {[%clk 0:02:58]} 4. c4 {[%clk 0:02:58]}  c5 {[%clk 0:02:57]} 5. Nf3 {[%clk 0:02:57]}  Nc6 {[%clk 0:02:56]} 6. cxd5 {[%clk 0:02:58]}  exd5 {[%clk 0:02:55]} 7. Bb5 {[%clk 0:02:59]}  Bd6 {[%clk 0:02:48]} 8. O-O {[%clk 0:02:59]}  O-O {[%clk 0:02:48]} 9. Bxc6 {[%clk 0:02:57]}  bxc6 {[%clk 0:02:48]} 10. d3 {[%clk 0:02:58]}  a5 {[%clk 0:02:44]} 11. Nc3 {[%clk 0:02:57]}  h6 {[%clk 0:02:41]} 12. Na4 {[%clk 0:02:56]}  Bg4 {[%clk 0:02:38]} 13. h3 {[%clk 0:02:55]}  Bh5 {[%clk 0:02:36]} 14. Rc1 {[%clk 0:02:55]}  Nd7 {[%clk 0:02:31]} 15. d4 {[%clk 0:02:50]}  cxd4 {[%clk 0:02:25]} 16. Qxd4 {[%clk 0:02:49]}  f6 {[%clk 0:02:03]} 17. Rxc6 {[%clk 0:02:49]}  Ne5 {[%clk 0:01:48]} 18. Qxd5+ {[%clk 0:02:46]}  Bf7 {[%clk 0:01:41]} 19. Qxd6 {[%clk 0:02:46]}  Nxc6 {[%clk 0:01:42]} 20. Qxc6 {[%clk 0:02:47]}  Qd3 {[%clk 0:01:41]} 21. Qc3 {[%clk 0:02:45]}  Qe2 {[%clk 0:01:41]} 22. Nd4 {[%clk 0:02:43]}  Qa6 {[%clk 0:01:41]} 23. Qc6 {[%clk 0:02:43]}  Qd3 {[%clk 0:01:41]} 24. Qc2 {[%clk 0:02:40]}  Qa6 {[%clk 0:01:40]} 25. Nc5 {[%clk 0:02:40]}  Qa7 {[%clk 0:01:38]} 26. a3 {[%clk 0:02:38]}  Rfc8 {[%clk 0:01:36]} 27. b4 {[%clk 0:02:38]}  axb4 {[%clk 0:01:37]} 28. axb4 {[%clk 0:02:39]}  Rab8 {[%clk 0:01:37]} 29. Bc3 {[%clk 0:02:40]}  Qc7 {[%clk 0:01:33]} 30. Na6 {[%clk 0:02:39]} 1-0


[Site "https://www.chess.com"]